bitfinex-derivatives/quotes_SOLF0:USTF0_20251117
["timestamp","ask_amount","ask_price","bid_price","bid_amount"]
[1763421328392,5.84066325,130.78,130.7,3.38]
[1763421328695,3.5,130.8,130.72,3.38]
[1763421329080,0.05229611,130.77,130.75,3.43618183]
[1763421329481,0.05229611,130.77,130.75,0.05618183]
[1763421329482,3.55229611,130.77,130.75,0.05618183]
[1763421330790,0.05229611,130.77,130.75,3.43618183]
[1763421337089,3.55229611,130.77,130.75,0.05618183]
[1763421337404,5.80759851,130.76,130.75,0.05618183]
[1763421337596,0.05229611,130.77,130.75,3.45618183]
[1763421337897,3.5,130.88,130.77,3.4]
[1763421338096,6.94616637,130.92,130.88,3.4]
[1763421338299,6.94616637,130.92,130.75,1.52]
[1763421338300,6.94616637,131.0,130.91,3.4]
[1763421338502,12.49716054,131.01,130.86,10.72181865]
[1763421338503,6.5,131.01,130.93,14.12181865]
[1763421338706,6.5,131.01,130.94,3.4]
[1763421338904,0.05774731,130.99,130.97,3.4]
[1763421339200,0.04831015,130.99,130.97,3.45301734]
[1763421339396,3.5,131.08,130.99,3.4]
[1763421339599,10.44616637,131.11,131.05,10.72181865]
[1763421339803,6.94616637,131.14,131.08,10.72181865]
[1763421340000,6.94616637,131.15,131.12,3.4]
[1763421340194,3.5,131.19,131.12,3.4]
[1763421340195,6.94616637,131.16,131.12,3.4]
[1763421340402,6.94616637,131.21,131.15,3.4]
[1763421340594,6.94616637,131.26,131.18,3.4]
[1763421340791,6.94616637,131.26,131.17,10.72181865]
[1763421340792,6.94616637,131.29,131.21,3.4]
[1763421341002,9.49716054,131.32,131.2,10.72181865]
[1763421341003,6.94616637,131.32,131.24,3.4]
[1763421341301,12.99716054,131.35,131.25,3.4]
[1763421341302,3.5,131.35,131.25,3.4]
[1763421341489,9.49716054,131.39,131.24,40.08]
[1763421341490,0.05732224,131.31,131.3,3.4]
[1763421341694,0.05770795,131.32,131.29,3.45527382]
[1763421341895,0.04928718,131.32,131.29,3.45388781]
[1763421342309,0.04928718,131.32,131.25,3.4]
[1763421342510,14.22181865,131.28,131.2,62.0]
[1763421342707,10.72181865,131.25,131.17,3.4]
[1763421342906,10.72181865,131.25,131.09,30.32]
[1763421342907,3.5,131.24,131.1,3.4]
[1763421343214,10.72181865,131.22,131.1,3.4]
[1763421343517,0.05657064,131.17,131.15,3.45376297]
[1763421343716,0.04879822,131.17,131.15,3.45376297]
[1763421344312,3.5,131.24,131.16,3.4]
[1763421344820,3.5,131.24,131.16,10.22441231]
[1763421345416,0.0504643,131.21,131.19,0.05405958]
[1763421345916,0.0504643,131.21,131.09,30.32]
[1763421345917,0.0504643,131.21,131.12,10.22441231]
[1763421346218,3.5,131.2,131.12,3.4]
[1763421347018,0.04947761,131.17,131.15,10.27358695]
[1763421347214,0.05768045,131.17,131.16,3.4]
[1763421348317,3.5,131.25,131.17,3.4]
[1763421348522,3.5,131.25,131.18,10.22441231]
[1763421348717,3.5,131.29,131.21,6.82441231]
[1763421348920,3.5,131.29,131.21,10.22441231]
[1763421349115,0.05347675,131.26,131.24,0.0495365]
[1763421349314,3.55347675,131.26,131.24,0.0495365]
[1763421349517,5.07347675,131.26,131.17,10.22441231]
[1763421349712,3.5,131.31,131.2,10.22441231]
[1763421350414,3.5,131.31,131.24,0.05033804]
[1763421350415,0.04978782,131.27,131.24,0.05033804]
[1763421350618,3.54978782,131.27,131.24,0.05033804]
[1763421350816,3.54978782,131.27,131.16,6.82441231]
[1763421351022,3.5,131.27,131.16,6.82441231]
[1763421351322,3.5,131.25,131.13,10.22441231]
[1763421351917,3.55159675,131.2,131.18,0.05326559]
[1763421352114,0.05323715,131.2,131.18,0.05699982]
[1763421352422,0.05323715,131.2,131.18,3.45699982]
[1763421353118,0.05323715,131.2,131.18,0.05699982]
[1763421354328,0.05323715,131.2,131.18,3.45699982]
[1763421355326,0.05323715,131.2,131.18,0.05699982]
[1763421357228,0.05323715,131.2,131.18,3.45699982]
[1763421357621,0.05323715,131.2,131.18,0.05699982]
[1763421358433,3.5,131.24,131.19,10.22441231]
[1763421358625,3.5,131.29,131.19,10.22441231]
[1763421359531,3.5,131.29,131.13,6.82441231]
[1763421359532,0.05306466,131.25,131.23,3.4546786]
[1763421359723,0.05010062,131.25,131.23,3.45640626]
[1763421360425,3.55010062,131.25,131.23,0.05640626]
[1763421360733,3.5,131.24,131.13,10.22441231]
[1763421360932,3.5,131.23,131.13,10.22441231]
[1763421361529,0.04825367,131.19,131.17,0.05389025]
[1763421361832,3.54825367,131.19,131.17,0.05389025]
[1763421364734,3.54825367,131.19,131.09,10.30441231]
[1763421364934,3.5,131.18,131.09,10.30441231]
[1763421365230,3.5,131.24,131.12,10.30441231]
[1763421365630,3.5,131.21,131.09,6.82441231]
[1763421365831,3.55804442,131.16,131.14,0.0568896]
[1763421366027,3.54822496,131.16,131.14,0.05508573]
[1763421368233,3.54822496,131.16,131.07,6.82441231]
[1763421368436,3.5,131.16,131.07,6.82441231]
[1763421369239,3.5480998,131.13,131.1,0.05837385]
[1763421369435,3.55861695,131.13,131.1,0.05102352]
[1763421370141,0.05861695,131.13,131.11,3.48]
[1763421370338,3.5,131.21,131.13,3.48]
[1763421370544,3.5,131.21,131.13,10.30441231]
[1763421371241,0.05629025,131.18,131.16,0.04898823]
[1763421371840,3.55629025,131.18,131.16,0.04898823]
[1763421372141,3.55629025,131.18,131.09,10.30441231]
[1763421372343,3.5,131.18,131.09,10.30441231]
[1763421372941,3.5,131.18,131.09,6.82441231]
[1763421373141,3.5,131.14,131.12,0.05339007]
[1763421373440,3.5,131.14,130.96,6.82441231]
[1763421373441,3.55176323,131.14,131.02,3.48]
[1763421373637,3.55176323,131.14,131.02,10.30441231]
[1763421373638,6.82441231,131.14,131.02,10.30441231]
[1763421373838,3.5,131.13,131.02,10.30441231]
[1763421374045,3.5,131.13,131.03,3.48]
[1763421374645,3.55424161,131.09,131.07,0.04855514]
[1763421374835,3.55136403,131.09,131.07,0.05492461]
[1763421375235,3.55136403,131.09,130.94,9.66]
[1763421375236,3.55136403,131.09,131.0,3.48]
[1763421375438,3.5,131.09,131.0,3.48]
[1763421375744,3.5,131.09,130.99,6.82441231]
[1763421375943,3.5,131.09,130.97,3.48]
[1763421376141,3.5,131.08,130.97,3.48]
[1763421376446,3.5,131.03,131.01,0.05317615]
[1763421376646,3.5,131.03,131.01,0.05040028]
[1763421377034,0.05138923,131.04,131.01,0.05040028]
[1763421377234,0.05138923,131.04,131.01,3.53040028]
[1763421378244,0.05138923,131.04,131.02,10.30441231]
[1763421379346,0.05138923,131.04,131.01,0.05040028]
[1763421379549,0.05138923,131.04,131.01,3.28040028]
[1763421380352,0.05138923,131.04,131.01,0.05040028]
[1763421381250,5.83115268,131.03,131.01,0.05040028]
[1763421381444,5.83115268,131.02,131.01,0.05040028]
[1763421381846,0.05138923,131.04,131.01,3.28040028]
[1763421382146,0.05138923,131.04,131.02,10.05441231]
[1763421382648,0.05138923,131.04,131.02,3.23]
[1763421382844,0.05138923,131.04,131.01,0.05040028]
[1763421383242,6.9975556,131.04,131.01,0.05040028]
[1763421384851,6.94616637,131.02,131.01,0.05040028]
[1763421385050,12.93716054,131.03,131.01,0.05040028]
[1763421385243,7.00985004,131.02,131.01,0.05040028]
[1763421385441,3.44,131.01,130.94,6.82441231]
[1763421385635,3.44,131.01,130.95,3.23]
[1763421385636,7.00753274,130.98,130.95,3.23]
[1763421386166,7.00753274,130.97,130.94,6.82441231]
[1763421386453,7.06393542,130.97,130.94,6.82441231]
[1763421386951,7.06393542,130.97,130.93,3.23]
[1763421388447,10.50393542,130.97,130.92,6.82441231]
[1763421388654,10.44753274,130.95,130.91,10.05441231]
[1763421388849,0.05006115,130.94,130.91,10.05441231]
[1763421389052,0.05688969,130.94,130.91,10.05441231]
[1763421389444,0.05688969,130.94,130.92,3.23]
[1763421390954,0.05688969,130.94,130.91,10.05441231]
[1763421391152,0.05688969,130.94,130.92,3.23]
[1763421391848,0.05688969,130.94,130.91,6.82441231]
[1763421392047,0.05688969,130.94,130.86,62.0]
[1763421392048,3.44,130.93,130.86,10.05441231]
[1763421392247,0.05448733,130.91,130.86,3.23]
[1763421392447,3.49448733,130.91,130.86,3.23]
[1763421392756,10.50202007,130.91,130.84,6.82441231]
[1763421393151,10.50202007,130.91,130.85,3.24]
[1763421393353,3.49448733,130.91,130.85,3.24]
[1763421393854,5.78804141,130.9,130.85,3.24]
[1763421394049,5.78804141,130.89,130.85,3.24]
[1763421394256,0.04945275,130.88,130.85,3.24]
[1763421395042,0.04945275,130.88,130.85,4.76]
[1763421395356,0.04945275,130.88,130.87,10.06441231]
[1763421396057,0.04945275,130.88,130.87,3.24]
[1763421396254,0.04945275,130.88,130.86,6.82441231]
[1763421396442,0.04945275,130.88,130.84,3.24]
[1763421398155,0.04945275,130.88,130.87,3.24]
[1763421400249,0.04945275,130.88,130.86,6.82441231]
[1763421400449,0.04945275,130.88,130.86,10.06441231]
[1763421401553,0.04945275,130.88,130.86,3.24]
[1763421401761,0.04945275,130.88,130.84,3.24]
[1763421402958,3.52945275,130.88,130.83,6.82441231]
[1763421403256,5.76991786,130.87,130.81,3.24]
[1763421403453,0.05782625,130.85,130.81,3.24]
[1763421407158,0.05782625,130.85,130.82,10.74735935]
[1763421407357,0.05782625,130.85,130.83,3.24]
[1763421408959,0.05782625,130.85,130.81,3.24]
[1763421412163,7.00753274,130.91,130.84,3.24]
[1763421412367,5.79366037,130.9,130.85,3.24]
[1763421412554,5.79366037,130.89,130.85,3.24]
[1763421412756,3.48,130.93,130.85,3.24]
[1763421412964,5.69152583,130.92,130.85,3.24]
[1763421413166,0.05425299,130.9,130.87,3.29567384]
[1763421415987,7.00753274,130.96,130.9,3.24]
[1763421416178,5.7029369,130.95,130.9,3.24]
[1763421416373,5.7029369,130.95,130.89,47.72735935]
[1763421416374,7.00753274,130.98,130.93,3.24]
[1763421416575,3.48,130.96,130.89,13.98735935]
[1763421416782,5.71212533,130.95,130.89,13.98735935]
[1763421416981,3.53570353,130.93,130.91,0.05157379]
[1763421417182,5.71212533,130.92,130.91,0.05157379]
[1763421418473,9.19212533,130.92,130.91,0.05157379]
[1763421418680,7.06323627,130.93,130.91,0.05157379]
[1763421418681,7.00753274,130.95,130.91,3.29157379]
[1763421418885,10.48753274,130.97,130.93,10.74735935]
[1763421419183,3.48,130.96,130.88,3.24]
[1763421419379,10.48753274,130.95,130.88,3.24]
[1763421419580,7.00753274,130.94,130.88,3.24]
[1763421419779,0.05151171,130.92,130.9,0.04846497]
[1763421420178,3.53151171,130.92,130.9,0.04846497]
[1763421420392,10.53904445,130.92,130.9,0.04846497]
[1763421421081,0.05151171,130.92,130.9,3.28846497]
[1763421421682,0.05151171,130.92,130.9,0.04846497]
[1763421422783,3.28151171,130.92,130.9,0.04846497]
[1763421422980,3.23,130.91,130.84,3.42]
[1763421423287,7.05904445,130.92,130.77,127.74735935]
[1763421423288,3.23,130.89,130.82,10.74735935]
[1763421423588,3.23,130.89,130.82,3.42]
[1763421423784,10.23753274,130.89,130.82,3.42]
[1763421423979,9.34337699,130.91,130.78,62.0]
[1763421423980,3.23,130.86,130.78,3.42]
[1763421424288,3.23,130.82,130.81,0.05515549]
[1763421425690,7.06122324,130.83,130.81,0.05515549]
[1763421425891,0.0536905,130.83,130.81,0.05515549]
[1763421427092,0.0536905,130.83,130.81,3.47515549]
[1763421428587,0.0536905,130.83,130.81,0.05515549]
[1763421428785,3.2836905,130.83,130.81,0.05515549]
[1763421429188,7.00753274,130.82,130.77,3.42]
[1763421429389,3.23,130.82,130.77,3.42]
[1763421429584,10.23753274,130.79,130.7,14.16735935]
[1763421429787,3.23,130.76,130.68,3.42]
[1763421429989,10.23753274,130.76,130.68,3.42]
[1763421430183,0.05817138,130.73,130.71,0.05010633]
[1763421430385,0.05697845,130.73,130.71,0.0501399]
[1763421430783,5.60629054,130.72,130.71,0.0501399]
[1763421431098,8.83629054,130.72,130.65,4.75114027]
[1763421431390,5.60629054,130.71,130.65,3.42]
[1763421431596,5.60629054,130.7,130.65,3.42]
[1763421431791,3.23,130.72,130.65,3.42]
[1763421432091,7.00753274,130.76,130.71,3.42]
[1763421432299,0.0542099,130.75,130.71,3.42]
[1763421433788,0.0542099,130.75,130.73,3.42]
[1763421433993,0.05855717,130.75,130.73,3.42]
[1763421434193,0.05855717,130.75,130.7,3.42]
[1763421434397,0.0563207,130.74,130.7,3.42]
[1763421435194,3.2863207,130.74,130.67,65.42]
[1763421435398,3.2863207,130.74,130.67,3.42]
[1763421437491,0.0563207,130.74,130.67,3.42]
[1763421437691,0.0563207,130.74,130.68,3.42]
[1763421438695,3.4063207,130.74,130.65,3.39]
[1763421438895,0.05672831,130.71,130.65,3.39]
[1763421439201,3.40672831,130.71,130.62,196.04551699]
[1763421439404,0.05430155,130.68,130.63,3.39]
[1763421440191,3.40430155,130.68,130.63,3.39]
[1763421440397,0.05430155,130.68,130.63,3.39]
[1763421440794,3.40430155,130.68,130.63,3.39]
[1763421441108,3.40430155,130.68,130.6,3.39]
[1763421441296,3.40293519,130.65,130.57,3.39]
[1763421441494,3.40819117,130.62,130.57,3.39]
[1763421441799,0.0539846,130.61,130.54,24.5]
[1763421442003,0.0539846,130.61,130.54,27.89]
[1763421442501,3.4039846,130.61,130.54,27.89]
[1763421442702,3.4039846,130.61,130.54,3.39]
[1763421443103,3.4039846,130.61,130.51,12.07997787]
[1763421443104,3.4039846,130.61,130.51,14.13735935]
[1763421443400,3.40682762,130.58,130.48,1.33287372]
[1763421443604,3.35,130.55,130.47,3.39]
[1763421443799,0.05588071,130.56,130.52,5.42003734]
[1763421444007,0.05588071,130.56,130.52,2.03003734]
[1763421444312,0.05588071,130.56,130.52,5.42003734]
[1763421444806,0.05588071,130.56,130.53,3.39]
[1763421448804,0.05588071,130.56,130.52,5.42003734]
[1763421449209,0.05588071,130.56,130.53,3.39]
[1763421450703,3.35,130.63,130.56,3.39]
[1763421451612,0.05171627,130.61,130.58,0.04845336]
[1763421451814,0.0498477,130.61,130.58,3.44690982]
[1763421453509,5.62755929,130.7,130.58,4.98690982]
[1763421453717,9.34337699,130.74,130.58,4.98690982]
[1763421453718,5.62755929,130.73,130.63,3.22]
[1763421453905,3.19,130.74,130.66,3.22]
[1763421454106,5.62755929,130.76,130.68,10.74735935]
[1763421454308,3.19,130.77,130.68,10.74735935]
[1763421454515,3.19,130.77,130.66,3.22]
[1763421454705,0.05573951,130.73,130.7,3.26999991]
[1763421455818,3.24573951,130.73,130.7,0.04999991]
[1763421456204,3.19,130.72,130.63,3.22]
[1763421457109,0.05849897,130.69,130.66,0.05181128]
[1763421457813,0.05849897,130.69,130.66,3.27181128]
[1763421458413,3.24849897,130.69,130.66,0.05181128]
[1763421458615,0.05849897,130.69,130.66,0.05181128]
[1763421460514,0.05849897,130.69,130.66,3.27181128]
[1763421460721,0.05849897,130.69,130.66,0.05181128]
[1763421461216,0.05849897,130.69,130.66,3.27181128]
[1763421464933,0.05849897,130.69,130.66,10.14690772]
[1763421465722,5.62755929,130.72,130.67,3.22]
[1763421465922,3.19,130.76,130.64,6.87509644]
[1763421465923,8.7982315,130.74,130.7,3.22]
[1763421466128,5.6082315,130.73,130.69,10.09509644]
[1763421466423,3.19,130.74,130.69,6.87509644]
[1763421466730,3.19,130.72,130.69,6.87509644]
[1763421467029,5.6160465,130.71,130.7,0.05568545]
[1763421468129,8.8060465,130.71,130.7,0.05568545]
[1763421469935,3.19,130.7,130.64,6.87509644]
[1763421470121,5.6160465,130.69,130.64,6.87509644]
[1763421470424,5.6160465,130.68,130.64,6.87509644]
[1763421470625,5.6160465,130.67,130.64,6.87509644]
[1763421470825,5.6160465,130.66,130.64,10.09509644]
[1763421471025,0.05391742,130.66,130.64,10.1460793]
[1763421473333,5.64568046,130.65,130.64,10.1460793]
[1763421473627,0.05391742,130.66,130.65,3.22]
[1763421474226,0.05391742,130.66,130.64,6.9260793]
[1763421474430,5.64992156,130.65,130.64,6.9260793]
[1763421475738,5.64992156,130.65,130.64,10.1460793]
[1763421477727,0.05391742,130.66,130.64,10.1460793]
[1763421479130,0.05391742,130.66,130.65,3.22]
[1763421479532,10.16161448,130.7,130.65,3.22]
[1763421479736,5.65907028,130.69,130.68,3.22]
[1763421480032,3.19,130.72,130.68,3.22]
[1763421480433,10.16161448,130.72,130.68,3.22]
[1763421480633,6.87509644,130.79,130.67,6.87509644]
[1763421480634,3.23825242,130.71,130.69,0.0498433]
[1763421480833,3.19,130.7,130.62,6.87509644]
[1763421481034,10.16161448,130.7,130.59,6.87509644]
[1763421481235,10.16161448,130.67,130.59,10.09509644]
[1763421481634,6.97161448,130.65,130.59,10.09509644]
[1763421481839,0.04936808,130.63,130.61,3.2778531]
[1763421482338,6.97161448,130.68,130.63,3.22]
[1763421482835,10.26161448,130.68,130.63,3.22]
[1763421483142,3.29,130.67,130.63,3.22]
[1763421483441,0.05869458,130.66,130.64,0.05617022]
[1763421483744,3.34869458,130.66,130.64,0.05617022]
[1763421484036,3.29,130.64,130.56,10.19509644]
[1763421484241,3.29,130.63,130.56,10.19509644]
[1763421484439,10.30487489,130.62,130.56,10.19509644]
[1763421484832,18.85323702,130.7,130.48,123.87509644]
[1763421484833,3.34542737,130.6,130.58,0.05522367]
[1763421485040,7.01487489,130.59,130.53,10.19509644]
[1763421485341,10.30487489,130.6,130.54,3.32]
[1763421485537,3.29,130.6,130.54,3.32]
[1763421485738,7.01487489,130.62,130.56,6.87509644]
[1763421486035,0.05752246,130.6,130.53,10.19509644]
[1763421486235,7.07239735,130.6,130.53,10.19509644]
[1763421486434,0.05752246,130.6,130.53,10.19509644]
[1763421486638,7.07239735,130.6,130.53,10.19509644]
[1763421486836,0.05752246,130.6,130.53,10.19509644]
[1763421487031,10.36239735,130.6,130.53,10.19509644]
[1763421487445,10.36239735,130.6,130.57,3.32]
[1763421487446,0.05752246,130.6,130.57,3.32]
[1763421487630,7.01487489,130.64,130.57,3.32]
[1763421487835,0.05087583,130.6,130.57,3.32]
[1763421488141,7.01487489,130.65,130.6,3.32]
[1763421488335,7.01487489,130.66,130.6,3.32]
[1763421489034,10.30487489,130.63,130.62,0.05681693]
[1763421489235,3.29,130.62,130.57,3.32]
[1763421490234,0.05036212,130.61,130.57,3.32]
[1763421490932,7.01487489,130.64,130.61,3.32]
[1763421491132,10.30487489,130.66,130.61,3.32]
[1763421492035,5.86414513,130.65,130.62,0.05023967]
[1763421492351,0.05082009,130.65,130.64,3.32]
[1763421492642,7.01487489,130.69,130.64,3.32]
[1763421492844,7.01487489,130.7,130.66,6.87509644]
[1763421493033,7.01487489,130.7,130.66,10.19509644]
[1763421493233,3.29,130.69,130.64,6.87509644]
[1763421493435,0.05100528,130.68,130.65,0.04836864]
[1763421493635,3.34100528,130.68,130.65,0.04836864]
[1763421494038,3.34100528,130.68,130.61,6.87509644]
[1763421494238,10.30487489,130.67,130.61,6.87509644]
[1763421494542,3.29,130.66,130.61,6.87509644]
[1763421495243,3.34341427,130.65,130.62,0.05116014]
[1763421495639,0.05341427,130.65,130.62,3.37116014]
[1763421495839,0.05341427,130.65,130.62,0.05116014]
[1763421497648,0.05341427,130.65,130.62,3.37116014]
[1763421497850,0.05341427,130.65,130.62,10.24625658]
[1763421498049,0.05341427,130.65,130.63,3.4]
[1763421498447,10.36487489,130.7,130.63,3.4]
[1763421498748,3.35,130.69,130.63,3.4]
[1763421499242,3.35,130.69,130.63,10.27509644]
[1763421499445,0.05108245,130.67,130.65,0.05081028]
[1763421500446,0.05108245,130.67,130.65,3.45081028]
[1763421501943,3.40108245,130.67,130.65,0.05081028]
[1763421504545,5.78533096,130.66,130.65,0.05081028]
[1763421504848,0.05108245,130.67,130.65,3.45081028]
[1763421506652,5.78347493,130.66,130.65,0.05081028]
[1763421506957,9.13347493,130.66,130.65,0.05081028]
[1763421507658,5.78347493,130.66,130.65,0.05081028]
[1763421510056,5.78347493,130.66,130.65,3.45081028]
[1763421510252,0.05108245,130.67,130.66,3.4]
[1763421511250,5.82934636,130.67,130.66,3.4]
[1763421511949,7.01487489,130.71,130.67,3.4]
[1763421512257,5.77964794,130.7,130.69,10.27509644]
[1763421513955,5.77895509,130.7,130.69,10.27509644]
[1763421514161,0.05174639,130.71,130.69,10.27509644]
[1763421515663,3.31,130.73,130.69,6.87509644]
[1763421515861,3.31,130.73,130.67,3.49]
[1763421515862,3.31,130.73,130.67,10.36509644]
[1763421516158,3.31,130.71,130.67,10.36509644]
[1763421516561,3.31,130.71,130.67,6.87509644]
[1763421516763,3.31,130.69,130.68,0.05490472]
[1763421518161,0.05193221,130.7,130.68,0.05490472]
[1763421518360,3.36193221,130.7,130.68,0.05490472]
[1763421519462,3.31,130.69,130.63,6.87509644]
[1763421520458,0.05855719,130.67,130.65,0.05085013]
[1763421521659,3.36855719,130.67,130.65,0.05085013]
[1763421525265,3.31,130.66,130.59,6.87509644]
[1763421526064,5.73495336,130.65,130.59,6.87509644]
[1763421526265,0.05613325,130.63,130.61,0.05386854]
[1763421527173,3.36613325,130.63,130.61,0.05386854]
[1763421528365,9.04303238,130.62,130.61,0.05386854]
[1763421530175,3.31,130.61,130.54,3.49]
[1763421530467,9.04303238,130.6,130.54,3.49]
[1763421530672,3.31,130.58,130.54,3.49]
[1763421530874,5.73303238,130.57,130.54,3.49]
[1763421531070,7.03484739,130.7,130.57,0.89]
[1763421531279,1.54,130.76,130.69,10.7863341]
[1763421531477,0.05005235,130.74,130.72,10.7863341]
[1763421531679,4.85,130.78,130.72,10.7863341]
[1763421531871,0.05220442,130.74,130.63,40.84]
[1763421532079,0.05748475,130.7,130.68,10.7863341]
[1763421532982,3.31,130.8,130.68,21.5726682]
[1763421533180,3.31,130.8,130.69,10.7863341]
[1763421533482,3.31,130.78,130.69,10.7863341]
[1763421533883,0.0517154,130.75,130.69,10.7863341]
[1763421534188,0.04840541,130.73,130.71,0.0544572]
[1763421534380,3.36509387,130.73,130.71,0.05212798]
[1763421534579,4.85,130.72,130.71,0.05212798]
[1763421534780,3.31,130.72,130.66,10.7863341]
[1763421534986,3.31,130.7,130.66,10.7863341]
[1763421535487,1.54,130.69,130.66,10.7863341]
[1763421535988,1.59533982,130.69,130.66,10.83594138]
[1763421538589,1.54,130.68,130.66,10.83594138]
[1763421539089,1.54,130.67,130.66,0.04960728]
[1763421539291,1.54,130.68,130.66,0.04960728]
[1763421539593,4.85,130.68,130.66,0.04960728]
[1763421539796,1.54,130.67,130.66,0.04960728]
[1763421540885,1.54,130.67,130.63,10.7863341]
[1763421540886,3.31,130.66,130.58,7.12938625]
[1763421541092,3.31,130.66,130.54,32.46584834]
[1763421541093,3.31,130.66,130.54,17.91572035]
[1763421541292,3.31,130.64,130.54,10.7863341]
[1763421541590,3.31,130.68,130.6,10.7863341]
[1763421541988,3.36404037,130.65,130.6,10.7863341]
[1763421542188,0.05581764,130.64,130.6,10.7863341]
[1763421542390,1.59581764,130.64,130.6,10.7863341]
[1763421542590,1.54,130.63,130.6,10.7863341]
[1763421543090,1.54,130.62,130.6,10.7863341]
[1763421543292,1.54,130.63,130.6,10.7863341]
[1763421543792,1.54,130.62,130.6,10.7863341]
[1763421543995,1.54,130.63,130.6,10.7863341]
[1763421544286,0.05581764,130.64,130.6,10.7863341]
[1763421544492,1.54,130.63,130.6,10.7863341]
[1763421547795,0.05581764,130.64,130.6,127.7863341]
[1763421548298,3.33,130.68,130.57,7.12938625]
[1763421548299,3.33,130.68,130.63,10.7863341]
[1763421549399,3.33,130.66,130.64,0.04963683]
[1763421549599,3.38842949,130.66,130.64,0.05664495]
[1763421553803,4.92842949,130.66,130.57,127.7863341]
[1763421553994,3.33,130.66,130.53,127.7863341]
[1763421554196,3.33,130.66,130.53,10.7863341]
[1763421554800,0.05604453,130.61,130.53,10.7863341]
[1763421555001,0.04886429,130.58,130.53,10.7863341]
[1763421555410,3.37886429,130.58,130.53,10.7863341]
[1763421555603,0.04886429,130.58,130.53,10.7863341]
[1763421556601,3.37886429,130.58,130.52,119.03003734]
[1763421556804,3.37886429,130.58,130.53,10.7863341]
[1763421558012,3.37886429,130.58,130.52,2.03003734]
[1763421563711,3.37886429,130.58,130.52,3.734e-05]
[1763421566718,3.27,130.57,130.42,10.7863341]
[1763421566906,3.27,130.5,130.42,10.7863341]
[1763421567207,3.32043638,130.47,130.42,10.7863341]
[1763421567408,3.32360675,130.46,130.39,10.7863341]
[1763421567615,0.05810427,130.44,130.39,127.7863341]
[1763421569016,0.05810427,130.44,130.39,129.3263341]
[1763421569219,0.05810427,130.44,130.39,127.7863341]
[1763421572414,0.05810427,130.44,130.42,10.7863341]
[1763421573216,0.05810427,130.44,130.39,51.6063341]
[1763421574914,0.05810427,130.44,130.42,10.7863341]
[1763421575115,3.22,130.54,130.42,10.7863341]
[1763421576112,0.04965767,130.49,130.47,0.05253289]
[1763421576317,0.05460465,130.49,130.47,0.05814916]
[1763421577916,3.27460465,130.49,130.47,0.05814916]
[1763421581125,3.22,130.56,130.48,10.7863341]
[1763421581621,3.22,130.64,130.51,10.7863341]
[1763421582212,3.22,130.58,130.56,0.04942394]
[1763421582416,3.27047191,130.58,130.56,0.05623042]
[1763421584523,0.05047191,130.58,130.56,0.05623042]
[1763421588736,3.22,130.66,130.56,0.05623042]
[1763421588942,3.22,130.66,130.53,6.88869863]
[1763421589645,3.22,130.6,130.58,0.05668156]
[1763421589836,3.27222384,130.6,130.58,0.05810204]
[1763421590334,3.22,130.59,130.5,6.88869863]
[1763421591440,0.05114562,130.56,130.53,0.04986481]
[1763421591741,0.05114562,130.56,130.53,6.93856344]
[1763421593545,0.05114562,130.56,130.53,123.93856344]
[1763421593838,3.22,130.62,130.53,123.93856344]
[1763421594041,3.22,130.62,130.53,123.88869863]
[1763421594843,0.05591056,130.59,130.56,0.04891031]
[1763421598742,3.27591056,130.59,130.56,0.04891031]
[1763421600446,3.27591056,130.59,130.51,6.88869863]
[1763421600633,3.22,130.59,130.51,6.88869863]
[1763421601034,3.22,130.62,130.56,6.88869863]
[1763421601446,3.2738325,130.6,130.58,0.05105563]
[1763421601644,3.27559024,130.6,130.58,0.05130675]
[1763421602340,3.22,130.67,130.59,6.88869863]
[1763421602545,3.22,130.67,130.46,9.50584834]
[1763421602546,3.22,130.67,130.62,6.88869863]
[1763421603252,3.22,130.71,130.62,6.88869863]
[1763421603548,3.26908272,130.68,130.65,0.05545621]
[1763421603742,3.2729456,130.68,130.65,0.05194202]
[1763421604052,3.2729456,130.68,130.54,70.86938625]
[1763421604053,3.2729456,130.68,130.59,6.88869863]
[1763421604347,3.22,130.68,130.59,6.88869863]
[1763421604744,3.22,130.68,130.56,6.88869863]